Cogmind - Beta 13 @@@ ROGUE MODE // 2024.04.01 @ 03:29:02 Player: Nossea Result: Destroyed by S-10 Pest with Light Assault Rifle Performance ------------- Evolutions (2) 1000 Regions Visited (4) 800 Robots Destroyed (60) 300 Value Destroyed (1500) 1500 Prototype IDs (3) 60 Alien Tech Used (0) 0 Bonus (0) 0 TOTAL SCORE: 3660 Bonus ------- None Cogmind --------- Core Integrity 0/550 Matter 73/300 Energy 132/140 System Corruption 0% Temperature Cool (0) Movement Treading (240) Ox1 Location -8/Materials Parts ------- > --- POWER (1) -------- Light Deuterium Engine > --- PROPULSION (4) --- Light Treads > --- UTILITY (3) ------ Large Storage Unit Hardened Medium Armor Plating Recalibrator > --- WEAPON (3) ------- Improved Medium Laser Mini Grenade Launcher Mining Laser > --- INVENTORY (15) --- Aluminum Leg Backup Propulsion I Huge Storage Unit High-capacity Matter Pod (0) Signal Interpreter Medium Armor Plating Hardened Medium Armor Plating Improved Light Armor Plating Remote Shield Peak State ------------ > --- POWER ------------ Improved Ion Engine > --- PROPULSION ------- Light Treads Light Treads Aluminum Leg Aluminum Leg > --- UTILITY ---------- Large Storage Unit Core Shielding Remote Shield > --- WEAPON ----------- Field Laser Ion Cannon Light Cannon > --- INVENTORY -------- Ion Engine Light Deuterium Engine Aluminum Leg Huge Storage Unit High-capacity Matter Pod Signal Interpreter Advanced Targeting Computer Medium Armor Plating Improved Light Armor Plating Assault Rifle Mini Grenade Launcher Datajack Mining Laser [Rating: 22] Favorites ----------- Power Ion Engine Engine Ion Engine Power Core Light Nuclear Core Propulsion Aluminum Leg Treads Light Treads Leg Aluminum Leg Hover Unit Backup Propulsion I Flight Unit Flight Unit Utility Large Storage Unit Device Seismic Detector Storage Large Storage Unit Processor Advanced Targeting Computer Protection Core Shielding Weapon Light Cannon Energy Gun EM Pulse Gun Energy Cannon Ion Cannon Ballistic Gun Heavy Assault Rifle Ballistic Cannon Light Cannon Launcher Mini Grenade Launcher Special Weapon Mining Laser Special Melee Weapon Datajack Build | -11 -10 -9 -9 -8 ------- Run | Yrd Mat Mat Min Mat Slots Evolved 4 | . . 2 . 2 Power . | . . . . . Propulsion 2 | . . 2 . . Utility 1 | . . . . 1 Weapon 1 | . . . . 1 Parts Attached 95 | 7 14 15 15 44 Power 8 | 1 . 1 2 4 Engine 6 | 1 . . 2 3 Core 2 | . . 1 . 1 Reactor . | . . . . . Propulsion 29 | 2 2 6 4 15 Treads 8 | . 2 . 3 3 Leg 18 | 2 . 6 . 10 Wheel . | . . . . . Hover 2 | . . . . 2 Flight 1 | . . . 1 . Utility 26 | 2 3 2 4 15 Device 9 | 2 2 1 2 2 Storage 7 | . 1 . . 6 Processor 2 | . . . 1 1 Hackware . | . . . . . Protection 8 | . . 1 1 6 Artifact . | . . . . . Weapon 32 | 2 9 6 5 10 Energy Gun 8 | 2 4 . . 2 Energy Cannon 1 | . . . . 1 Ballistic Gun 7 | . . 3 1 3 Ballistic Cannon 5 | . 1 2 2 . Launcher 1 | . . . . 1 Special Weapon 2 | . . . . 2 Impact Weapon . | . . . . . Slashing Weapon . | . . . . . Piercing Weapon . | . . . . . Special Melee Weapon 8 | . 4 1 2 1 Unidentified Prototypes 1 | . . . . 1 Parts Lost 21 | . 1 . 4 16 Power 4 | . . . 1 3 Propulsion 7 | . . . 2 5 Utility 3 | . 1 . . 2 Weapon 7 | . . . 1 6 Highest Loss Streak 7 | . 1 . 1 7 To Critical Strikes . | . . . . . Average Slot Usage (%) 86 | . 99 99 82 69 Engine 9 | . 14 8 6 7 Core 1 | . . 2 4 . Treads 10 | . 6 . 19 8 Leg 16 | . 21 43 9 5 Device 10 | . 15 10 9 6 Storage 10 | . 11 11 11 9 Protection 2 | . . . . 6 Energy Gun 7 | . 18 1 . 6 Ballistic Gun 5 | . . 11 12 2 Ballistic Cannon 4 | . 1 8 8 3 Launcher 1 | . . . . 5 Special Melee Weapon 2 | . 7 1 . . Naked Turns . | . . . . . Heaviest Build 102 | 11 31 32 36 102 Greatest Support 63 | 20 40 40 63 40 Greatest Overweight (x) 10 | . 1 . 1 10 Average Overweight (x) . | . . . . 1 Largest Inventory Capacity 25 | 5 15 15 15 25 Average Capacity 14 | 5 13 15 15 15 Most Carried 15 | 5 15 15 15 15 Average Carried 11 | 3 9 14 14 11 Final Capacity 15 | 5 15 15 15 15 Final Carried 15 | 4 15 15 15 9 Class Distribution -------------------- 62% | Mutant 23% | Scavenger-Mutant 9% | Scavenger-Tank 3% | Tank Dominant Class ---------------- Mutant | -10/Materials Scavenger-Mutant | -9/Materials Mutant | -9/Mines Scavenger-Tank | -8/Materials Resources | -11 -10 -9 -9 -8 ----------- Run | Yrd Mat Mat Min Mat Matter Collected 1713 | 351 420 240 457 245 Remotely . | . . . . . Salvage Created 1724 | 131 365 254 340 634 Parts 112 | 12 27 25 17 31 Haulers Intercepted 2 | . . . . 2 Recyclers Shooed 2 | . . . 2 . Parts Field Recycled . | . . . . . Retrieved Matter . | . . . . . Parts Self-Destructed . | . . . . . Prevented . | . . . . . Kills | -11 -10 -9 -9 -8 ------- Run | Yrd Mat Mat Min Mat Combat Hostiles Destroyed 47 | 1 8 6 13 19 Guns 22 | 1 5 4 8 4 Cannons 14 | . 3 2 5 4 AOE 11 | . . . . 11 Classes Destroyed 16 | 3 4 1 4 4 Worker 3 | 1 . . . 2 Builder 2 | . . . 1 1 Tunneler 4 | 3 . . . 1 Hauler 2 | . . . . 2 Recycler 5 | . 2 . 1 2 Mechanic 1 | . . . . 1 Operator 1 | . 1 . . . Watcher 3 | . 1 2 . . Swarmer 12 | . 6 . . 6 Grunt 19 | 1 2 5 2 9 Protector 1 | . . . 1 . Sentry 2 | . . 1 . 1 Demolisher 2 | . . . 2 . Specialist 2 | . . . . 2 Heavy 1 | . . . . 1 Assembled 8 | . . . 8 . Best Kill Streak 8 | 1 3 5 3 8 Combat Bots Only 5 | 1 3 5 3 4 Max Kills in Single Turn 3 | 1 1 1 1 3 Gunslinging . | . . . . . Exploded 2 | . . . . 2 Melee . | . . . . . Uniques/NPCs Destroyed . | . . . . . Combat | -11 -10 -9 -9 -8 -------- Run | Yrd Mat Mat Min Mat Hostile Shots Fired 265 | 3 29 26 57 150 Missed 79 | 1 10 6 13 49 Damage Taken 3086 | 23 172 255 892 1744 Core 857 | . 56 62 185 554 Absorbed by Shields 76 | . . . . 76 Redirected to Shielding 45 | . . 4 5 36 Regen/Repaired (Parts) 67 | . . 67 . . Core Remaining (%) 71 | 100 77 . 38 . Volleys Fired 172 | 19 28 21 53 51 Largest 3 | 2 2 2 2 3 Hottest 158 | 90 90 58 58 158 Shots Fired 304 | 38 53 41 80 92 Gun 195 | 38 41 21 56 39 Cannon 80 | . 12 20 24 24 Launcher 22 | . . . . 22 Special 7 | . . . . 7 Kinetic 159 | . 12 41 80 26 Thermal 88 | 19 25 . . 44 Explosive 22 | . . . . 22 Electromagnetic 35 | 19 16 . . . Robot Hit Streak 15 | 4 13 15 7 12 Robot Miss Streak 8 | 8 4 2 4 3 Penetration Max . | . . . . . Secondary Targets . | . . . . . Shots Hit Robots 193 | 15 37 29 54 58 Core Hits 112 | 5 15 14 30 48 Critical Kills . | . . . . . Critical Parts Destroyed 1 | . . . . 1 Critical Strikes 6 | . 2 . 1 3 Burn 3 | . 2 . . 1 Destroy 1 | . . . . 1 Blast 2 | . . . 1 1 Melee Attacks 15 | . 8 1 3 3 Impact . | . . . . . Slashing . | . . . . . Piercing . | . . . . . Sneak Attacks 13 | . 8 . 2 3 Combat Hostiles . | . . . . . Follow-up Attacks . | . . . . . Damage Inflicted 4565 | 195 445 462 834 2629 Guns 1681 | 195 285 270 545 386 Cannons 991 | . 115 192 288 396 Explosions 1844 | . 45 . . 1799 Melee . | . . . . . Ramming 1 | . . . 1 . Kinetic 1776 | . 115 462 833 366 Thermal 760 | 100 196 . . 464 Explosive 1799 | . . . . 1799 Electromagnetic 229 | 95 134 . . . Impact . | . . . . . Slashing . | . . . . . Piercing . | . . . . . Highest Corruption 3 | . . 3 3 . Average Corruption 2 | . . 2 3 . Corruption Purged . | . . . . . Corruption Blocked . | . . . . . Effects 34 | . . 5 29 . Message Errors 10 | . . 2 8 . Matter Fused 6 | . . 1 5 . Heat Flow Errors 4 | . . . 4 . Energy Discharges 6 | . . 2 4 . Data Loss (minor) 2 | . . . 2 . Data Loss (major) 3 | . . . 3 . Misfires 1 | . . . 1 . Alerts 1 | . . . 1 . Weapon Failures 1 | . . . 1 . Overload Shots . | . . . . . Overflow Damage 24 | . . . . 24 Projectiles 7 | . . . . 7 Explosions 17 | . . . . 17 Melee . | . . . . . Knockbacks 10 | . 3 2 2 3 Impact . | . . . . . Kinetic 10 | . 3 2 2 3 Secondary . | . . . . . Self-Inflicted Damage . | . . . . . Shots . | . . . . . Rammed 1 | . . . 1 . Targets Rammed 1 | . . . 1 . Kicked . | . . . . . Crushed . | . . . . . Highest Temperature 265 | 124 156 11 265 252 Average Temperature 59 | 46 55 4 76 65 Received Heat Transfer 974 | 12 12 132 276 542 Siege Activations . | . . . . . Robots Corrupted . | . . . . . Combat Hostiles . | . . . . . Parts Fried . | . . . . . Impact Corruptions . | . . . . . Robots Melted . | . . . . . Combat Hostiles . | . . . . . Parts Melted 2 | . . . . 2 Heat Transferred 1876 | 296 592 . . 988 Parts Sabotaged . | . . . . . Parts Stolen . | . . . . . Parts Stripped . | . . . . . Power Chain Reactions 1 | . 1 . . . Alert | -11 -10 -9 -9 -8 ------- Run | Yrd Mat Mat Min Mat Peak Influence 373 | 41 169 170 84 373 Initial 59 | . 26 57 59 . Average 74 | 21 45 121 28 145 Maximum Alert Level 1 | . . . . 1 Low Security (%) 90 | 100 100 100 100 64 Level 1 9 | . . . . 35 Level 2 . | . . . . . Level 3 . | . . . . . Level 4 . | . . . . . Level 5 . | . . . . . High Security . | . . . . . Max Security . | . . . . . Squads Dispatched 9 | . 1 1 1 6 Investigation . | . . . . . Extermination . | . . . . . Reinforcement 5 | . 1 1 . 3 Assault 1 | . . . 1 . Garrison 3 | . . . . 3 Intercept . | . . . . . Searches Triggered . | . . . . . Construction Impeded . | . . . . . Haulers Reinforced . | . . . . . Active Scanning Responses . | . . . . . Cargo Convoy Interrupts . | . . . . . Stealth | -11 -10 -9 -9 -8 --------- Run | Yrd Mat Mat Min Mat Distress Signals 4 | . . 1 1 2 Communications Jammed . | . . . . . Distress Signals . | . . . . . Times Spotted 68 | 1 13 10 14 30 Peak Tracking Total 5 | 1 3 3 3 5 Tactical Retreats 9 | . 1 1 2 5 Traps | -11 -10 -9 -9 -8 ------- Run | Yrd Mat Mat Min Mat Traps Triggered 2 | . . 2 . . Indirectly . | . . . . . Trap Hack Attempts . | . . . . . Triggered . | . . . . . Disarmed . | . . . . . Reprogrammed 1 | . 1 . . . Reused 1 | . 1 . . . Traps Extracted . | . . . . . Installed . | . . . . . Triggered 1 | . 1 . . . Machines | -11 -10 -9 -9 -8 ---------- Run | Yrd Mat Mat Min Mat Machines Disabled 4 | . . 2 . 2 Max in Single Turn 2 | . . 1 . 2 Machines Repaired . | . . . . . Machines Dismantled . | . . . . . Machines Sabotaged . | . . . . . Overloaded Fab Kills . | . . . . . Hacking | -11 -10 -9 -9 -8 --------- Run | Yrd Mat Mat Min Mat Machines Accessed 12 | . 5 4 . 3 Terminals 7 | . 4 2 . 1 Fabricators . | . . . . . Repair Stations 1 | . . 1 . . Recycling Units 3 | . 1 1 . 1 Scanalyzers 1 | . . . . 1 Garrison Access . | . . . . . Total Hacks 40 | . 15 15 . 10 Successful 25 | . 11 8 . 6 Failed 14 | . 3 7 . 4 Catastrophic 2 | . . 1 . 1 Database Lockouts 1 | . 1 . . . Manual 3 | . 3 . . . Terminals 23 | . 14 7 . 2 Fabricators . | . . . . . Repair Stations 3 | . . 3 . . Recycling Units 9 | . 1 5 . 3 Scanalyzers 5 | . . . . 5 Garrison Access . | . . . . . Terminal Hacks 14 | . 10 3 . 1 Record 7 | . 6 1 . . Prototype ID Bank 1 | . 1 . . . Emergency Access Points 1 | . 1 . . . Alert Level 2 | . . 1 . 1 Locate Traps 1 | . 1 . . . Reprogram Traps 1 | . 1 . . . Recall Reinforcements 1 | . . 1 . . Fabricator Hacks . | . . . . . Repair Station Hacks 2 | . . 2 . . Scan Component 1 | . . 1 . . Repair 1 | . . 1 . . Recycling Unit Hacks 5 | . 1 3 . 1 Process 1 | . . 1 . . Report Inventory 2 | . 1 1 . . Retrieve Matter 1 | . . 1 . . Retrieve Components 1 | . . . . 1 Scanalyzer 4 | . . . . 4 Insert Component 2 | . . . . 2 Analyze 2 | . . . . 2 Garrison Access Hacks . | . . . . . Unauthorized Hacks . | . . . . . Terminals . | . . . . . Fabricators . | . . . . . Repair Stations . | . . . . . Recycling Units . | . . . . . Scanalyzers . | . . . . . Garrison Access . | . . . . . Data Cores Recovered . | . . . . . Used . | . . . . . Hacking Detections 10 | . 4 3 . 3 Full Trace Events . | . . . . . Feedback Events . | . . . . . Feedback Blocked . | . . . . . Robot Schematics Acquired . | . . . . . Robots Built . | . . . . . Authchips . | . . . . . Time . | . . . . . Total Robot Build Rating . | . . . . . Part Schematics Acquired 1 | . . . . 1 Parts Built . | . . . . . Authchips . | . . . . . Time . | . . . . . Total Part Build Rating . | . . . . . Parts Repaired 1 | . . 1 . . Time 32 | . . 32 . . Parts Recycled . | . . . . . Recycled Matter 71 | . . 71 . . Retrieved Matter 71 | . . 71 . . Retrieved Components 9 | . . . . 9 Parts Scanalyzed 2 | . . . . 2 Part Schematics Acquired 1 | . . . . 1 Parts Damaged . | . . . . . Bothacking | -11 -10 -9 -9 -8 ------------ Run | Yrd Mat Mat Min Mat Used RIF Installer . | . . . . . Robots Hacked 8 | . 4 1 1 2 Non-combat 8 | . 4 1 1 2 Combat . | . . . . . Robot Hacks Applied 12 | . 7 1 2 2 parse_system 3 | . 1 1 1 . no_distress 8 | . 5 . 1 2 find_recycling 1 | . 1 . . . Relay Couplers Released . | . . . . . Fabnet Peak Effective % . | . . . . . Robots Rewired . | . . . . . Allies Hacked . | . . . . . Hacks Repelled . | . . . . . Allies | -11 -10 -9 -9 -8 -------- Run | Yrd Mat Mat Min Mat Total Allies 1 | . . . 1 . Largest Group 1 | . . . 1 . Highest-Rated Group 31 | . . . 31 . Highest-Rated Ally 31 | . . . 31 . Total Orders . | . . . . . Ally Attacks 3 | . . . 3 . Total Damage 43 | . . . 43 . Kills . | . . . . . Allies Corrupted . | . . . . . Allies Melted . | . . . . . Intel | -11 -10 -9 -9 -8 ------- Run | Yrd Mat Mat Min Mat Robot Analysis Total . | . . . . . Derelict Logs Recovered 1 | . . . 1 . Drone Launches . | . . . . . Drone Recoveries . | . . . . . Exploration | -11 -10 -9 -9 -8 ------------- Run | Yrd Mat Mat Min Mat Turns Passed 4667 | 255 1339 581 1308 1184 Spaces Moved 2053 | 157 600 280 674 342 Core 33 | 22 . . . 11 Treads 922 | . 166 6 485 265 Legs 1082 | 135 434 274 189 50 Wheels . | . . . . . Hover 16 | . . . . 16 Flight . | . . . . . Fastest Speed 50 | 50 120 120 120 120 Average Speed 167 | 110 172 120 156 244 Slowest Speed 550 | 120 190 160 190 550 Overloaded Moves . | . . . . . Propulsion Burnouts . | . . . . . Robots Hopped . | . . . . . Cave-ins Triggered . | . . . . . Exploration Rate (%) 41 | 7 75 17 82 26 Regions Visited 4 Branch Regions 1 Pre-discovered Areas . | . . . . . Known Exits Taken . | . . . . . Unknown Exits Taken 4 | 1 1 1 1 . Scrap Searched 1 | . . . 1 . Spaces Dug 2 | . . . . 2 Terrain Destroyed 91 | . 4 . . 87 Melee . | . . . . . Projectile 4 | . . . . 4 AOE 87 | . 4 . . 83 Terrain Rammed . | . . . . . Walls Destroyed . | . . . . . Machines Disabled . | . . . . . Actions | -11 -10 -9 -9 -8 --------- Run | Yrd Mat Mat Min Mat Total 2955 | 201 840 480 845 589 Wait 530 | 8 175 139 82 126 Move 2049 | 156 599 279 673 342 Hop . | . . . . . Pick Up 63 | 11 14 14 10 14 Fast Attach . | . . . . . Attach 39 | 7 1 2 4 25 Detach 8 | . . . 1 7 Swap 56 | . 13 13 11 19 Drop 22 | . 2 11 7 2 Fire 172 | 19 28 21 53 51 Melee 15 | . 8 1 3 3 Ram . | . . . . . Kick . | . . . . . Crush 1 | . . . 1 . Escape Stasis . | . . . . . Rewire . | . . . . . Trap . | . . . . . Miscellaneous . | . . . . . Route ------- -11/Scrapyard -10/Materials (discovered 4 exits: *Mat x2 / [*Min x2]) -9/Materials -9/Mines -8/Materials (discovered 1 exit: Fac) History --------- Turn | Location | Event 2 | -11/Scrapyard | Met Revision 17 78 | -11/Scrapyard | Discovered new exit (range 8) 256 | -11/Scrapyard | Entered Materials 300 | -10/Materials | Build established: Mutant 476 | -10/Materials | Discovered new exit (range 13) 541 | -10/Materials | Discovered new exit (range 15) 1099 | -10/Materials | Discovered new exit (range 16) 1281 | -10/Materials | Discovered new exit (range 3) 1411 | -10/Materials | Central database locked down 1595 | -10/Materials | Entered another Materials area 1595 | -9/Materials | Evolved 2 slots: Propulsion x2 2091 | -9/Materials | Build established: Scavenger-Mutant 2138 | -9/Materials | Repaired Hvy. Assault Rifle 2155 | -9/Materials | Discovered new exit (range 8) 2176 | -9/Materials | Entered Mines 2177 | -9/Mines | Met a Derelict testing a Signal Generator 2185 | -9/Mines | Found Signal Generator 2311 | -9/Mines | Assembled infested the area 2425 | -9/Mines | Discovered new exit (range 7) 2641 | -9/Mines | Core integrity fell below 50% 2835 | -9/Mines | Found a damaged Exp. Sensor Array with a note attached 2952 | -9/Mines | Learned location of 1 exit from Materials 3140 | -9/Mines | Build established: Mutant 3484 | -9/Mines | Entered Materials 3484 | -8/Materials | Evolved 2 slots: Utility x1, Weapon x1 3485 | -8/Materials | Identified exit to Factory 3957 | -8/Materials | Lost 6 parts (1p2n3w) 4025 | -8/Materials | Core integrity fell below 50% 4046 | -8/Materials | Core integrity fell below 20% 4050 | -8/Materials | Garrison activated, responded to threat 4068 | -8/Materials | Lost 7 parts (1p3n2u1w) 4668 | -8/Materials | Destroyed by S-10 Pest with Light Assault Rifle Last Messages --------------- A-02 Transporter destroyed. S-10 Pest destroyed. R-06 Scavenger destroyed. S-10 Pest destroyed. Destroyed Lgt. Ion Engine. Destroyed Flight Unit. The unstable cave ceiling collapses. Flight Unit melted. S-10 Pest destroyed. The unstable cave ceiling collapses. Imp. EM Shotgun crushed. U-05 Engineer builds a Wall. W-25 Informer sends out distress signal. U-05 Engineer lays Concrete. [Achievement: First Step to Greatness] Important note for Steam players: Cogmind player global achievement rates displayed by Steam are all significantly underreported, in some cases by a huge margin, due to how they are calculated by Valve. Map ----- +----------------------------------------------------+ | ??# ""!== # ######?????? | | ??# ##[ !! # #??????????? | | ??# ##!"Y" ## ###########??????????? | | ??# ## """ ## # ## #??????????????? | | ??# ############ # ! ??????????????? | | ??# # "" ??????????????? | | ??# ###### # T????????????????? | | ??# !### # ""???????????????? | | ??# !## #? ????????????????? | | ??# #### !## #? ????????????????? | | ??# #??# !## #????????????????????? | | ??# #??# !## #????????????????????? | | ??# #??# !### ????????????????????? | | ??# #??####?? ?????????????????????? | | ??# #??######????????????????????????? | | ??# #?? #????????????????????????? | | ??# ##""" #????????????????????????? | | ??# ##""" #????????????????????????? | | ??# ##""" #????????????????????????? | | ??# #? #####????????????????????? | | ??# #?? *![##???????????????????? | | ??# ####+ # ####### #???????????????? | | ??# [%[%! ??????????????? | | ??###########; = * #######+#####???????????? | | ?????# #k[= !! [ ss ????????? | | ?????# ! + @ s#??????????????? | | ?????# ! # !#??????????????? | | ?????##????### ### # #??????????????? | | ?????????????# #?############??????????????? | | ?????????????# #???????????????????????????? | | ?????????????# #???????????????????????????? | | ?????????????# ???????????????????????????? | | ?????????????+ ???????????????????????????? | | ?????????????# ???????????????????????????? | | ?????????????# ???????????????????????????? | | ?????????????# ???????????????????????????? | | ?????????????? ???????????????????????????? | | ?????????????? ???????????????????????????? | | ?????????????? ???????????????????????????? | | ???????????????????????????????????????????? | | ???????????????????????????????????????????? | | ???????????????????????????????????????????? | | ???????????????????????????????????????????? | | ???????????????????????????????????????????? | | ???????????????????????????????????????????? | | ???????????????????????????????????????????? | | ???????????????????????????????????????????? | | ???????????????????????????????????????????? | | ???????????????????????????????????????????? | | ???????????????????????????????????????????? | +----------------------------------------------------+ Best States ------------- Heat Dissipation 31 Energy Generation 14 Energy Capacity 265 Matter Stores 300 Matter Capacity 500 Sight Range 16 Robot Scan Range 14 Terrain Scan Density 85 Armor Coverage 225 Core Shielding 20 Utility Shielding 33 Evasion (%) 55 Targeting Accuracy 8 Recoil Reduction 3 Item Schematics ----------------- Mni. Grenade Launcher | -8/Materials | Scanalyzed Robot Schematics ------------------ None Fabricated ------------ Nothing Alien Tech Used ----------------- None Achievements -------------- First Step to Greatness GoHome() I Survived The Infestation Loot Pinata Oops Part-time Mechanic Risk Taker Troublemaker Challenges ------------ None Game ------ Seed AlloyCryofiberSuperbattery Manual? 0 Play Time 01:24:03 Cumulative 1.3 hours Start 2024.04.01 @ 01:49:17 End 2024.04.01 @ 03:29:02 Sessions 1 Manual Loads 0 Difficulty Rogue Special Mode None Game No. 1 Rogue 1 Adventurer 0 Explorer 0 Win Type - Total 0 Types 0/0/0/0/0/0/0/0/0 Lore% 9 Gallery% 5 Achievement% 5 Wizard Run 0 Options --------- Layout 1 ASCII 0 Keyboard 0 Movement Mouse Keybinds 0 Fullscreen 1 Font 24/X11 Map View 50x35 Zoom Use 0% Tactical HUD 0 Map Filters NONE Filters NONE Steam 1 RUN: 3e27cd3e-3e17-448e-978e-1be2059908e8